bitfinex/quotes_SOLUSD_20250928
["timestamp","ask_amount","ask_price","bid_price","bid_amount"]
[1759071257185,2.75255473,201.89,201.85,0.68]
[1759071257794,2.75255473,201.88,201.85,0.68]
[1759071257995,2.75255473,201.89,201.85,0.68]
[1759071259499,3.31255473,201.89,201.85,0.68]
[1759071259702,2.75255473,201.88,201.85,0.68]
[1759071259888,2.75255473,201.88,201.84,38.44]
[1759071260090,2.75255473,201.89,201.85,0.68]
[1759071260503,2.75255473,201.88,201.84,38.44]
[1759071260709,2.75255473,201.88,201.84,39.16]
[1759071261291,2.75255473,201.88,201.85,14.90720266]
[1759071261598,0.56,201.89,201.85,15.62720266]
[1759071262089,2.75255473,201.89,201.85,0.72]
[1759071262510,2.75255473,201.89,201.85,15.62720266]
[1759071263587,2.75255473,201.88,201.85,15.62720266]
[1759071265298,3.31255473,201.88,201.85,14.90720266]
[1759071267107,2.75255473,201.88,201.85,14.90720266]
[1759071267712,2.75255473,201.88,201.85,15.62720266]
[1759071267909,2.75255473,201.88,201.85,14.90720266]
[1759071268115,2.75255473,201.86,201.84,38.44]
[1759071268415,2.75255473,201.85,201.84,14.90794345]
[1759071268786,2.75255473,201.85,201.84,0.72]
[1759071269310,2.75255473,201.85,201.83,14.9086843]
[1759071269616,2.75255473,201.85,201.83,15.6286843]
[1759071269826,2.75255473,201.84,201.81,38.5]
[1759071269997,2.75255473,201.82,201.81,0.1]
[1759071274501,2.75255473,201.83,201.81,0.82]
[1759071274705,2.75255473,201.82,201.81,0.82]
[1759071275326,2.75255473,201.83,201.81,0.82]
[1759071275512,133.6,201.88,201.82,0.72]
[1759071275812,133.6,201.88,201.83,2.75255473]
[1759071275999,133.6,201.88,201.84,0.72]
[1759071276606,133.6,201.88,201.85,15.62720266]
[1759071277221,133.6,201.88,201.85,14.90720266]
[1759071277517,135.36314226,201.88,201.86,0.72]
[1759071277904,135.36314226,201.88,201.85,14.90720266]
[1759071278221,1.76314226,201.87,201.85,15.62720266]
[1759071278918,1.76314226,201.87,201.85,14.90720266]
[1759071279517,1.76314226,201.87,201.86,0.72]
[1759071279729,135.36314226,201.88,201.86,0.72]
[1759071280202,135.36314226,201.88,201.86,15.62720266]
[1759071280394,135.36314226,201.88,201.86,14.90720266]
[1759071280595,1.76314226,201.87,201.84,0.72]
[1759071280805,1.76314226,201.87,201.85,15.62720266]
[1759071281005,1.76314226,201.87,201.85,0.72]
[1759071281305,133.6,201.88,201.85,0.72]
[1759071281613,1.76314226,201.87,201.85,0.72]
[1759071281923,1.76314226,201.87,201.85,15.62720267]
[1759071282500,135.36314226,201.88,201.85,14.90720267]
[1759071282706,135.36314226,201.88,201.86,0.72]
[1759071282921,135.36314226,201.88,201.86,15.62720267]
[1759071283917,135.36314226,201.88,201.87,0.72]
[1759071284123,135.36314226,201.88,201.86,14.90720267]
[1759071286306,135.36314226,201.88,201.86,15.62720267]
[1759071288022,135.36314226,201.88,201.86,14.90720267]
[1759071288211,135.36314226,201.88,201.87,0.72]
[1759071288404,133.6,201.88,201.87,0.72]
[1759071289006,1.76314226,201.91,201.87,0.72]
[1759071289414,1.76314226,201.91,201.88,0.72]
[1759071290212,1.76314226,201.91,201.89,0.72]
[1759071291028,1.76314226,201.91,201.88,15.56572131]
[1759071291337,1.76314226,201.91,201.89,0.66]
[1759071291529,1.76314226,201.9,201.89,0.66]
[1759071291730,1.76314226,201.9,201.88,14.90572131]
[1759071291928,1.76314226,201.9,201.88,15.56572131]
[1759071292112,1.76314226,201.89,201.85,0.66]
[1759071292318,1.76314226,201.88,201.85,0.66]
[1759071292518,1.76314226,201.88,201.87,14.90646195]
[1759071292848,1.76314226,201.88,201.83,0.66]
[1759071293140,1.76314226,201.86,201.83,15.56720267]
[1759071293323,1.76314226,201.86,201.84,0.66]
[1759071293734,0.56,201.9,201.84,0.66]
[1759071293735,1.76314226,201.87,201.84,0.66]
[1759071294234,1.76314226,201.87,201.85,0.66]
[1759071294440,1.76314226,201.88,201.86,0.66]
[1759071294939,1.76314226,201.88,201.84,0.66]
[1759071295242,1.76314226,201.89,201.86,14.90720266]
[1759071295432,1.76314226,201.89,201.86,15.56720266]
[1759071295632,1.76314226,201.89,201.86,14.90720266]
[1759071295938,1.76314226,201.89,201.86,15.56720266]
[1759071296321,133.6,201.91,201.86,15.56720266]
[1759071296526,1.76314226,201.89,201.86,15.56720266]
[1759071296917,1.76314226,201.89,201.87,0.66]
[1759071297213,1.76314226,201.89,201.86,14.90720266]
[1759071297214,1.76314226,201.89,201.88,0.66]
[1759071297638,1.76314226,201.9,201.88,0.66]
[1759071297837,133.6,201.91,201.86,4.95391614]
[1759071298041,4.17852585,202.0,201.89,0.66]
[1759071298042,38.96,201.97,201.89,0.66]
[1759071298240,1.76314226,201.94,201.89,0.66]
[1759071298421,1.76314226,201.93,201.89,0.66]
[1759071298842,1.76314226,201.94,201.89,0.66]
[1759071299025,159.6,201.98,201.89,7.37629294]
[1759071299230,1.76314226,201.95,201.9,0.66]
[1759071299530,1.76314226,201.97,201.9,2.42314226]
[1759071299735,1.76314226,201.97,201.91,2.42314226]
[1759071299938,1.76314226,201.97,201.92,0.66]
[1759071300134,135.36314226,201.98,201.92,0.66]
[1759071300340,135.36314226,201.98,201.92,5.61239418]
[1759071300546,1.76314226,201.97,201.93,0.66]
[1759071300841,1.76314226,202.01,201.94,2.42314226]
[1759071301031,0.56,202.03,201.95,0.66]
[1759071301341,1.76314226,202.01,201.95,0.66]
[1759071301646,1.76314226,202.0,201.96,14.89831897]
[1759071301822,1.76314226,202.0,201.97,0.66]
[1759071303344,1.76314226,202.0,201.98,14.89831897]
[1759071304144,1.76314226,202.02,201.98,15.55831897]
[1759071304451,1.76314226,202.04,201.99,0.66]
[1759071304639,1.76314226,202.04,202.0,0.66]
[1759071305147,0.56,202.04,201.98,16.66146123]
[1759071305337,2.32314226,202.04,201.98,16.66146123]
[1759071306247,1.76314226,202.03,201.98,14.89831897]
[1759071306551,1.76314226,202.0,201.98,14.89831897]
[1759071306751,2.32314226,202.0,201.94,2.42314226]
[1759071306932,1.76314226,201.99,201.89,13.59559401]
[1759071307137,0.56,201.98,201.97,14.89979885]
[1759071307429,0.56,201.98,201.87,38.4]
[1759071307430,13.59559401,201.96,201.85,25.36]
[1759071307624,0.56,201.95,201.88,14.90424025]
[1759071307827,26.0,201.93,201.88,14.90424025]
[1759071308141,26.0,201.93,201.85,26.02]
[1759071308340,1.76314226,201.89,201.86,14.90720267]
[1759071308854,1.76314226,201.89,201.86,15.56720267]
[1759071309642,1.76314226,201.89,201.87,0.66]
[1759071309954,1.76314226,201.92,201.88,0.66]
[1759071310447,1.76314226,201.92,201.89,0.66]
[1759071310638,27.76314226,201.93,201.87,1.76314226]
[1759071310839,27.76314226,201.93,201.88,0.66]
[1759071311045,27.76314226,201.93,201.89,0.66]
[1759071311352,27.76314226,201.93,201.9,0.66]
[1759071311534,1.76314226,201.93,201.88,15.56572131]
[1759071311729,1.76314226,201.93,201.89,0.66]
[1759071312247,1.76314226,201.93,201.88,14.90572131]
[1759071312553,1.76314226,201.93,201.89,0.66]
[1759071313651,1.76314226,201.92,201.89,0.66]
[1759071314353,1.76314226,201.93,201.89,0.66]
[1759071315253,2.32314226,201.93,201.88,14.90572131]
[1759071315456,1.76314226,201.92,201.86,1.76314226]
[1759071315656,1.76314226,201.92,201.87,14.90572131]
[1759071315657,2.32314226,201.92,201.87,14.90572131]
[1759071316045,1.76314226,201.91,201.88,0.66]
[1759071316648,1.76314226,201.91,201.87,14.90572131]
[1759071316852,2.32314226,201.92,201.87,14.90572131]
[1759071317160,2.32314226,201.91,201.85,27.78314226]
[1759071317352,1.76314226,201.9,201.85,26.02]
[1759071317656,1.76314226,201.9,201.86,15.56646195]
[1759071318047,1.76314226,201.9,201.87,0.66]
[1759071318241,1.76314226,201.91,201.87,0.66]
[1759071318447,1.76314226,201.91,201.87,14.90646195]
[1759071318655,2.32314226,201.91,201.85,27.78314226]
[1759071319156,2.32314226,201.91,201.86,14.90646195]
[1759071319359,2.32314226,201.91,201.86,15.56646195]
[1759071319554,2.32314226,201.91,201.87,0.66]
[1759071319754,1.76314226,201.91,201.87,0.66]
[1759071320361,0.56,201.92,201.87,0.66]
[1759071320538,1.76314226,201.91,201.87,0.66]
[1759071321039,1.76314226,201.88,201.81,0.1]
[1759071321359,0.56,201.87,201.81,0.1]
[1759071321658,1.76314226,201.87,201.81,2.57314226]
[1759071321861,172.0,201.9,201.85,1.76314226]
[1759071322033,133.6,201.9,201.86,0.71]
[1759071322236,133.6,201.9,201.87,0.71]
[1759071323756,133.6,201.9,201.88,0.71]
[1759071323947,133.6,201.9,201.89,0.71]
[1759071325262,2.32314226,201.94,201.89,0.71]
[1759071326043,2.32314226,201.93,201.89,0.71]
[1759071326252,2.32314226,201.93,201.87,2.47314226]
[1759071326648,1.76314226,201.92,201.87,2.47314226]
[1759071327266,1.76314226,201.92,201.86,1.76314226]
[1759071327467,2.32314226,201.92,201.87,0.71]
[1759071327764,1.76314226,201.92,201.88,0.71]
[1759071328964,1.76314226,201.92,201.89,0.71]
[1759071329166,1.76314226,201.93,201.87,1.76314226]
[1759071329345,1.76314226,201.93,201.88,0.71]
[1759071329541,1.76314226,201.93,201.89,0.71]
[1759071333467,0.56,201.94,201.89,0.71]
[1759071333652,1.76314226,201.93,201.89,0.71]
[1759071334055,0.56,201.93,201.89,0.71]
[1759071334255,2.32314226,201.93,201.89,0.71]
[1759071335278,1.76314226,201.92,201.89,0.71]
[1759071336265,2.75420768,201.92,201.89,0.71]
[1759071337159,133.6,201.96,201.91,2.75420768]
[1759071337363,133.6,201.96,201.93,2.75420768]
[1759071337568,133.6,201.96,201.94,0.71]
[1759071337750,133.6,201.96,201.95,0.71]
[1759071340267,133.6,201.96,201.93,2.75420768]
[1759071340447,133.6,201.96,201.91,7.70690785]
[1759071340755,133.6,201.96,201.92,0.71]
[1759071341671,3.31420768,201.95,201.9,0.71]
[1759071341849,2.75420768,201.95,201.91,0.71]
[1759071342566,3.31420768,201.95,201.89,3.46420768]
[1759071342746,3.31420768,201.95,201.9,0.71]
[1759071342947,3.31420768,201.95,201.89,2.75420768]
[1759071343165,2.75420768,201.95,201.9,0.71]
[1759071343367,2.75420768,201.95,201.91,0.71]
[1759071343569,136.35420768,201.96,201.91,0.71]
[1759071343764,133.6,201.96,201.92,0.71]
[1759071343971,133.6,201.96,201.91,2.75420768]
[1759071344175,133.6,201.96,201.93,0.71]
[1759071345264,133.6,201.96,201.91,2.75420768]
[1759071345465,38.94,201.98,201.87,53.28349984]
[1759071345466,134.16,202.02,201.95,2.75420768]
[1759071345665,133.6,202.02,201.97,2.75420768]
[1759071345864,159.6,202.02,201.98,0.71]
[1759071347370,133.6,202.02,201.99,3.46420768]
[1759071347592,133.6,202.02,202.0,0.71]
[1759071347873,133.6,202.02,202.01,0.71]
[1759071348760,133.6,202.02,201.98,3.46420768]
[1759071348969,133.6,202.02,201.99,0.71]
[1759071350177,133.6,202.02,202.0,0.71]
[1759071350372,133.6,202.02,202.01,0.71]
[1759071351766,133.6,202.02,201.98,0.72]
[1759071351966,133.6,202.02,201.99,0.72]
[1759071353078,26.0,202.03,202.0,0.72]
[1759071353283,26.0,202.03,202.01,0.72]
[1759071353671,41.13420768,202.06,202.01,0.72]
[1759071353865,41.69420768,202.06,202.01,0.72]
[1759071354370,0.56,202.06,202.02,0.72]
[1759071354567,28.75420768,202.07,202.02,0.72]
[1759071354883,29.31420768,202.07,202.02,0.72]
[1759071355275,28.75420768,202.07,202.02,0.72]
[1759071355480,0.56,202.06,202.0,2.75420768]
[1759071355778,0.56,202.06,202.0,3.47420768]
[1759071356578,0.56,202.06,202.01,0.72]
[1759071357381,0.56,202.06,202.02,0.72]
[1759071358581,3.31420768,202.06,202.02,0.72]
[1759071361383,26.0,202.07,202.02,0.72]
[1759071361688,2.75420768,202.06,202.02,0.72]
[1759071362374,3.31420768,202.06,202.02,0.72]
[1759071364385,26.0,202.02,201.95,0.72]
[1759071364564,26.0,202.02,201.83,159.47304435]
[1759071364565,2.75420768,201.99,201.93,3.47420768]
[1759071364771,3.31420768,201.99,201.93,2.75420768]
[1759071364973,3.31420768,201.99,201.94,0.72]
[1759071365381,3.31420768,201.99,201.93,2.75420768]
[1759071365588,3.31420768,201.99,201.94,0.72]
[1759071365881,3.31420768,201.99,201.95,0.72]
[1759071365882,0.56,201.99,201.95,0.72]
[1759071366079,2.75420768,201.99,201.93,2.75420768]
[1759071366384,2.75420768,201.99,201.96,0.72]
[1759071367395,2.75420768,202.01,201.97,0.72]
[1759071367698,26.0,202.0,201.97,0.72]
[1759071368074,28.75420768,202.0,201.97,0.72]
[1759071368280,28.75420768,202.0,201.94,2.75420768]
[1759071368488,28.75420768,202.0,201.95,0.72]
[1759071368667,28.75420768,202.0,201.96,0.72]
[1759071368864,2.75420768,201.97,201.92,4.95098028]
[1759071369067,2.75420768,201.95,201.92,0.72]
[1759071369686,0.56,201.95,201.9,0.72]
[1759071369887,2.75420768,201.94,201.9,0.72]
[1759071370067,2.75420768,201.94,201.88,2.75420768]
[1759071370068,3.31420768,201.94,201.88,3.47420768]
[1759071370468,3.31420768,201.94,201.88,0.72]
[1759071370469,2.75420768,201.93,201.88,0.72]
[1759071370693,3.31420768,201.93,201.88,0.72]
[1759071370885,2.75420768,201.93,201.89,0.68]
[1759071371086,2.75420768,201.94,201.89,0.68]
[1759071371479,2.75420768,201.94,201.9,0.68]
[1759071372298,26.56,201.98,201.91,3.43420768]
[1759071372599,26.0,201.96,201.92,0.68]
[1759071372783,28.75420768,201.96,201.92,0.68]
[1759071373483,0.56,201.98,201.93,0.68]
[1759071373484,26.0,201.98,201.93,0.68]
[1759071373669,28.75420768,201.98,201.94,0.68]
[1759071373866,2.75420768,201.98,201.94,0.68]
[1759071374293,28.75420768,201.97,201.92,2.75420768]
[1759071374592,2.75420768,201.95,201.92,0.68]
[1759071374986,2.75420768,201.94,201.92,0.68]
[1759071375790,26.0,201.97,201.92,0.68]
[1759071375996,2.75420768,201.94,201.92,0.68]
[1759071377989,2.75420768,201.95,201.92,0.68]
[1759071378985,2.75420768,201.95,201.89,12.66070076]
[1759071379188,2.75420768,201.95,201.92,0.68]
[1759071380091,2.75420768,201.95,201.93,0.68]
[1759071380397,0.56,201.98,201.93,0.66]
[1759071380589,2.75420768,201.96,201.93,0.66]
[1759071381297,2.75420768,201.96,201.9,7.70707584]
[1759071381505,2.75420768,201.96,201.94,0.66]
[1759071381688,2.75420768,201.95,201.91,0.66]
[1759071381888,2.75420768,201.95,201.92,0.66]
[1759071383186,2.75420768,201.95,201.93,0.66]
[1759071386405,2.75420768,201.96,201.93,0.66]
[1759071387302,2.75420768,201.96,201.9,7.70702407]
[1759071387609,2.75420768,201.96,201.94,0.66]
[1759071388606,2.75420768,201.98,201.95,0.66]
[1759071388810,28.75420768,202.0,201.95,0.66]
[1759071388999,26.0,202.0,201.95,3.41420768]
[1759071389186,26.0,202.0,201.96,0.66]
[1759071389387,26.0,202.0,201.97,0.66]
[1759071389698,28.75420768,202.0,201.98,0.66]
[1759071389892,2.75420768,202.03,201.99,0.66]
[1759071390198,2.75420768,202.04,201.99,0.66]
[1759071390509,2.75420768,202.04,202.0,0.66]
[1759071390719,133.6,202.08,202.01,3.41420768]
[1759071390905,0.56,202.09,202.02,0.66]
[1759071390906,2.75420768,202.07,202.02,0.66]
[1759071391215,26.0,202.06,202.03,0.66]
[1759071391525,28.75420768,202.06,202.03,0.66]
[1759071393418,0.56,202.08,202.04,0.66]
[1759071393419,2.75420768,202.08,202.04,0.66]
[1759071393589,2.75420768,202.08,202.05,0.66]
[1759071393788,133.6,202.09,202.05,0.66]
[1759071394001,2.75420768,202.08,202.05,0.66]
[1759071394199,2.75420768,202.08,202.03,0.66]
[1759071394591,2.75420768,202.08,202.04,0.66]
[1759071394792,2.75420768,202.07,202.04,0.66]
[1759071396923,2.75420768,202.07,202.02,0.66]
[1759071397099,2.75420768,202.06,201.98,48.26194739]
[1759071397418,2.75420768,202.06,202.0,3.41420768]
[1759071397621,2.75420768,202.06,202.01,0.66]
[1759071397819,2.75420768,202.06,202.02,0.66]
[1759071398332,1.76023183,202.06,202.02,0.66]
[1759071398707,1.76023183,202.06,202.03,0.66]
[1759071399307,1.76023183,202.07,202.03,0.66]
[1759071399508,0.56,202.08,202.03,0.66]
[1759071399820,1.76023183,202.07,202.03,0.66]
[1759071404109,135.36023183,202.09,202.04,0.66]
[1759071404713,1.76023183,202.08,202.04,0.66]
[1759071405130,26.0,202.1,202.05,1.76023183]
[1759071405338,26.0,202.1,202.06,0.66]
[1759071405339,27.76023183,202.1,202.06,0.66]
[1759071405714,1.76023183,202.09,202.06,0.66]
[1759071408627,27.76023183,202.1,202.04,1.76023183]
[1759071408935,27.76023183,202.1,202.07,0.66]
[1759071409608,0.2,202.11,202.07,0.66]
[1759071409814,0.2,202.11,202.04,0.66]
[1759071409815,1.76023183,202.08,202.04,0.66]
[1759071410130,0.56,202.1,202.04,0.66]
[1759071410131,1.76023183,202.06,202.04,0.66]
[1759071410924,1.76023183,202.06,202.01,3.74588548]
[1759071411130,1.76023183,202.05,202.0,38.34]
[1759071411331,1.76023183,202.06,202.02,0.67]
[1759071411633,1.76023183,202.06,202.0,45.05071762]
[1759071411634,1.76023183,202.06,202.03,0.67]
[1759071414636,1.76023183,202.05,202.0,6.71071762]
[1759071414817,1.76023183,202.05,202.01,0.67]
[1759071415016,0.56,202.08,202.01,0.67]
[1759071415332,1.76023183,202.06,202.01,0.67]
[1759071415633,1.76023183,202.08,202.02,1.76023183]
[1759071415937,1.76023183,202.08,202.03,2.43023183]
[1759071416234,1.76023183,202.08,202.04,0.67]
[1759071416433,1.76023183,202.08,202.01,28.48725716]
[1759071416434,1.76023183,202.08,202.05,0.67]
[1759071417225,1.76023183,202.08,202.03,1.76023183]
[1759071417417,1.76023183,202.09,202.04,0.67]
[1759071417617,27.76023183,202.1,202.04,0.67]
[1759071417937,1.76023183,202.09,202.05,0.67]
[1759071420639,1.76023183,202.08,202.05,0.67]
[1759071421243,1.76023183,202.07,202.02,38.34]
[1759071421419,1.76023183,202.06,202.02,39.01]
[1759071421624,2.32023183,202.06,202.02,38.34]
[1759071421829,2.32023183,202.06,202.02,0.67]
[1759071422025,1.76023183,202.06,202.02,0.67]
[1759071422335,1.76023183,202.07,202.03,0.67]
[1759071422532,1.76023183,202.07,202.04,0.67]
[1759071422921,1.76023183,202.07,202.01,6.71043404]
[1759071423130,1.76023183,202.07,202.02,0.67]
[1759071423327,1.76023183,202.07,202.03,0.67]
[1759071423523,1.76023183,202.04,201.99,14.89314171]
[1759071423729,1.76023183,202.0,201.99,14.89314171]
[1759071423940,2.32023183,202.0,201.99,14.89314171]
[1759071424121,2.32023183,202.0,201.94,0.67]
[1759071424444,1.76023183,201.97,201.94,0.67]
[1759071424631,1.76023183,201.97,201.92,0.67]
[1759071424943,1.76023183,201.97,201.93,0.67]
[1759071425435,1.76023183,201.98,201.93,2.43023183]
[1759071425635,1.76023183,201.98,201.93,1.76023183]
[1759071425836,1.76023183,201.98,201.94,0.67]
[1759071426616,1.76023183,201.98,201.95,0.67]
[1759071426821,0.56,202.0,201.93,6.7124222]
[1759071426822,1.76023183,201.99,201.93,6.7124222]
[1759071427131,1.76023183,201.99,201.94,0.67]
[1759071427338,1.76023183,201.99,201.95,0.67]
[1759071427535,26.0,202.04,201.96,1.76023183]
[1759071427841,38.32,202.05,201.96,1.76023183]
[1759071427842,27.76023183,202.02,201.97,0.67]
[1759071428225,1.76023183,202.01,201.98,0.67]
[1759071430544,1.76023183,202.01,201.95,6.71194514]
[1759071430742,1.76023183,202.01,201.98,0.68]
[1759071431044,0.56,202.03,201.93,43.29209508]
[1759071431045,1.76023183,202.03,201.99,0.68]
[1759071431218,2.32023183,202.03,201.97,1.76023183]
[1759071431548,2.32023183,202.03,201.98,0.68]
[1759071431549,1.76023183,202.02,201.98,0.68]
[1759071431747,1.76023183,202.02,201.99,0.68]
[1759071432446,1.76023183,202.03,202.0,0.68]
[1759071432648,1.76023183,202.03,201.98,0.68]
[1759071432842,1.76023183,202.03,201.99,0.68]
[1759071433646,2.32023183,202.03,201.99,0.68]
[1759071434047,1.76023183,202.02,201.97,0.68]
[1759071434437,2.32023183,202.02,201.97,0.68]
[1759071434630,2.32023183,202.02,201.96,1.76023183]
[1759071434831,1.76023183,202.02,201.97,0.68]
[1759071435147,1.76023183,202.02,201.98,0.68]
[1759071436253,1.76023183,202.03,201.98,0.68]
[1759071436545,1.76023183,202.03,201.99,0.68]
[1759071437323,26.56,202.05,201.99,0.68]
[1759071437669,1.76023183,202.04,202.0,0.68]
[1759071438151,0.2,202.11,202.01,2.44023183]
[1759071438451,1.76023183,202.04,201.99,0.68]
[1759071438750,2.32023183,202.04,201.99,0.68]
[1759071438924,2.32023183,202.04,201.97,6.71134381]
[1759071439129,1.76023183,202.05,201.99,1.76023183]
[1759071439334,1.76023183,202.05,202.0,0.68]
[1759071439528,26.0,202.07,201.98,1.76023183]
[1759071439529,1.76023183,202.04,201.98,1.76023183]
[1759071439755,1.76023183,202.03,201.97,40.78023183]
[1759071440137,1.76023183,202.03,201.98,0.68]
[1759071440343,2.32023183,202.03,201.98,0.68]
[1759071440542,2.32023183,202.02,201.97,38.34]
[1759071440862,2.32023183,202.01,201.97,38.34]
[1759071441559,1.76023183,202.01,201.97,39.06]
[1759071442046,1.76023183,202.02,201.97,39.06]
[1759071442256,1.76023183,202.01,201.97,39.06]
[1759071443138,1.76023183,202.02,201.98,0.72]
[1759071445244,1.76023183,202.01,201.98,0.72]
[1759071445754,1.76023183,202.02,201.98,0.72]
[1759071446357,0.56,202.03,201.98,0.72]
[1759071446557,1.76023183,202.02,201.98,0.72]
[1759071447539,133.6,202.06,201.99,2.48023183]
[1759071447747,1.76023183,202.05,201.99,2.48023183]
[1759071447940,135.36023183,202.06,202.0,2.48023183]
[1759071448146,135.36023183,202.06,202.01,0.72]
[1759071448334,135.36023183,202.06,202.02,0.72]
[1759071448853,1.76023183,202.04,202.0,0.72]
[1759071449359,2.32023183,202.04,201.99,0.72]
[1759071449560,2.32023183,202.04,202.0,0.72]
[1759071449857,1.76023183,202.04,202.0,0.72]
[1759071451861,1.76023183,202.03,202.0,0.72]
[1759071452049,1.76023183,202.04,202.0,0.72]
[1759071452742,1.76023183,202.04,202.01,0.72]
[1759071453061,1.76023183,202.04,201.98,6.71120495]
[1759071453359,1.76023183,202.04,201.99,0.72]
[1759071453960,133.6,202.06,202.0,1.76023183]
[1759071454167,135.36023183,202.06,202.01,0.72]
[1759071454457,135.36023183,202.06,202.02,0.72]
[1759071455957,133.6,202.06,202.03,0.72]
[1759071457055,133.6,202.06,202.04,0.72]
[1759071457246,27.76023183,202.07,202.02,0.72]
[1759071457643,27.76023183,202.07,202.01,6.71046677]
[1759071457861,27.76023183,202.07,202.03,0.72]
[1759071458867,0.2,202.11,202.03,40.80023183]
[1759071459060,0.2,202.11,202.04,2.48023183]
[1759071459364,0.2,202.11,202.05,0.72]
[1759071459573,0.2,202.11,202.06,1.76023183]
[1759071459760,0.2,202.11,202.07,0.72]
[1759071459979,1.96023183,202.11,202.07,0.72]
[1759071460149,1.96023183,202.11,202.05,4.94919025]
[1759071460469,0.2,202.11,202.07,0.72]
[1759071460764,0.2,202.11,202.08,0.72]
[1759071462572,0.2,202.11,202.09,0.72]
[1759071463262,0.2,202.11,202.07,3.468901]
[1759071463482,0.2,202.11,202.08,0.72]
[1759071463849,0.2,202.11,202.04,38.42]
[1759071464073,0.2,202.11,202.06,2.748901]
[1759071464270,0.2,202.11,202.07,0.72]
[1759071464474,0.2,202.11,202.08,0.72]
[1759071464858,2.948901,202.11,202.08,0.72]
[1759071465065,2.948901,202.11,202.05,2.748901]
[1759071465264,2.948901,202.11,202.06,0.72]
[1759071465561,0.2,202.11,202.06,3.468901]
[1759071465868,0.2,202.11,202.07,0.72]
[1759071466459,0.2,202.11,202.07,3.468901]
[1759071466660,0.2,202.11,202.08,0.72]
[1759071466868,0.2,202.11,202.09,0.72]
[1759071467164,0.2,202.11,202.1,0.72]
[1759071471372,0.2,202.11,202.07,39.11]
[1759071471673,0.2,202.11,202.08,0.71]
[1759071471971,0.2,202.11,202.06,41.128901]
[1759071472163,0.2,202.11,202.07,0.71]
[1759071472363,0.2,202.11,202.08,0.71]
[1759071472559,2.948901,202.11,202.08,0.71]
[1759071472878,2.948901,202.11,202.09,0.71]
[1759071473762,0.2,202.11,202.09,0.71]
[1759071477487,2.748901,202.1,202.06,39.09]
[1759071477768,2.748901,202.1,202.06,0.71]
[1759071478366,0.76,202.11,202.04,0.71]
[1759071478367,2.748901,202.08,202.04,0.71]
[1759071478674,2.748901,202.08,202.05,0.71]
[1759071479465,2.748901,202.07,202.03,38.34]
[1759071479760,2.748901,202.08,202.04,0.71]
[1759071479960,2.748901,202.08,202.05,0.71]
[1759071480961,26.0,202.1,202.05,0.71]
[1759071481165,2.748901,202.09,202.05,0.71]
[1759071485679,26.0,202.1,202.06,0.71]
[1759071485861,0.2,202.11,202.06,0.71]
[1759071485862,0.2,202.11,202.09,2.748901]
[1759071486068,0.2,202.11,202.1,3.458901]
[1759071486576,0.2,202.11,202.1,22.00254053]
[1759071487181,0.2,202.11,202.1,23.9871105]
[1759071488068,0.2,202.11,202.1,3.458901]
[1759071488279,0.2,202.11,202.06,26.0]
[1759071488480,0.2,202.11,202.07,39.07]
[1759071489071,0.2,202.11,202.08,2.69476691]
[1759071489289,0.2,202.11,202.08,0.71]
[1759071489789,2.948901,202.11,202.07,38.36]
[1759071489972,2.948901,202.11,202.08,0.71]
[1759071490579,0.2,202.11,202.08,0.71]
[1759071490968,0.2,202.11,202.09,0.66]
[1759071492488,0.2,202.11,202.07,39.02]
[1759071492696,0.2,202.11,202.08,0.66]